Cogmind - Beta 12 @@@ ROGUE MODE // 2023.04.27 @ 13:09:13 Player: Dytto Result: Self-destructed Performance ------------- Evolutions (2) 1000 Regions Visited (5) 1000 Robots Destroyed (7) 35 Value Destroyed (178) 178 Prototype IDs (23) 460 Alien Tech Used (0) 0 Bonus (570) 570 TOTAL SCORE: 3243 Bonus ------- Pacifist 270 Aligned with FarCom 300 Cogmind --------- Core Integrity 143/550 Matter 300/300 Energy 10/100 System Corruption 0% Temperature Cool (54) Movement Core (50) Location -8/Materials Parts ------- > --- POWER (2) -------- (None) > --- PROPULSION (3) --- (None) > --- UTILITY (4) ------ 0b10 Alert Chip > --- WEAPON (2) ------- (None) > --- INVENTORY (5) ---- Ion Engine Wheel Compact Wheel Mining Claw Peak State ------------ > --- POWER ------------ Light Ion Engine > --- PROPULSION ------- Wheel Wheel > --- UTILITY ---------- 0b10 Alert Chip Chronowheel > --- WEAPON ----------- Assault Rifle Mining Claw > --- INVENTORY -------- Ion Engine Aluminum Leg Compact Wheel ECM Suite EM Pulse Gun [Rating: 24] Favorites ----------- Power Light Ion Engine Engine Light Ion Engine Propulsion Wheel Leg Aluminum Leg Wheel Wheel Utility ECM Suite Device ECM Suite Processor 0b10 Alert Chip Weapon Assault Rifle Energy Gun EM Pulse Gun Ballistic Gun Assault Rifle Impact Weapon Heavy Mace Slashing Weapon Mining Claw Build | -11 -10 -10 -10 -9 -8 ------- Run | Jun Mat Min Exi Min Mat Slots Evolved 4 | . . . . . 4 Power 1 | . . . . . 1 Propulsion 1 | . . . . . 1 Utility 2 | . . . . . 2 Weapon . | . . . . . . Parts Attached 18 | 4 3 . 3 . 8 Power 4 | 1 . . . . 3 Engine 4 | 1 . . . . 3 Core . | . . . . . . Reactor . | . . . . . . Propulsion 4 | 2 . . . . 2 Treads . | . . . . . . Leg 2 | . . . . . 2 Wheel 2 | 2 . . . . . Hover . | . . . . . . Flight . | . . . . . . Utility 5 | . 1 . 3 . 1 Device 4 | . 1 . 2 . 1 Storage . | . . . . . . Processor 1 | . . . 1 . . Hackware . | . . . . . . Protection . | . . . . . . Artifact . | . . . . . . Weapon 5 | 1 2 . . . 2 Energy Gun 2 | . 1 . . . 1 Energy Cannon . | . . . . . . Ballistic Gun 1 | 1 . . . . . Ballistic Cannon . | . . . . . . Launcher . | . . . . . . Special Weapon . | . . . . . . Impact Weapon 1 | . . . . . 1 Slashing Weapon 1 | . 1 . . . . Piercing Weapon . | . . . . . . Special Melee Weapon . | . . . . . . Unidentified Prototypes 2 | . . . 2 . . Parts Lost 10 | . . . . . 10 Power 2 | . . . . . 2 Propulsion 3 | . . . . . 3 Utility 2 | . . . . . 2 Weapon 3 | . . . . . 3 Highest Loss Streak 9 | . . . . . 9 To Critical Strikes . | . . . . . . Average Slot Usage (%) 80 | . 68 85 91 100 76 Engine 14 | . 14 14 14 14 16 Leg 3 | . . . . . 8 Wheel 19 | . 28 28 28 28 8 Device 13 | . 3 14 13 14 16 Processor 6 | . . . 7 14 9 Energy Gun 1 | . 6 . . . . Ballistic Gun 11 | . 14 14 14 14 8 Impact Weapon 3 | . . . . . 7 Slashing Weapon 6 | . 2 14 14 14 1 Naked Turns . | . . . . . . Heaviest Build 16 | 5 9 9 9 9 16 Greatest Support 23 | 20 20 20 20 20 23 Greatest Overweight (x) 1 | . . . . . 1 Average Overweight (x) . | . . . . . . Largest Inventory Capacity 5 | 5 5 5 5 5 5 Average Capacity 5 | 5 5 5 5 5 5 Most Carried 5 | 4 4 4 5 4 5 Average Carried 4 | 2 3 3 4 4 4 Final Capacity 5 | 5 5 5 5 5 5 Final Carried 4 | 4 3 4 4 4 4 Class Distribution -------------------- 100% | Mutant Dominant Class ---------------- Mutant | -10/Materials Mutant | -10/Mines Mutant | -10/Exiles Mutant | -9/Mines Mutant | -8/Materials Resources | -11 -10 -10 -10 -9 -8 ----------- Run | Jun Mat Min Exi Min Mat Matter Collected 379 | 194 . 18 . 40 127 Remotely . | . . . . . . Salvage Created 163 | . . . . . 163 Parts 9 | . . . . . 9 Haulers Intercepted . | . . . . . . Recyclers Shooed . | . . . . . . Parts Field Recycled . | . . . . . . Retrieved Matter . | . . . . . . Parts Self-Destructed . | . . . . . . Prevented . | . . . . . . Kills | -11 -10 -10 -10 -9 -8 ------- Run | Jun Mat Min Exi Min Mat Combat Hostiles Destroyed 6 | . . . . . 6 Melee 4 | . . . . . 4 Classes Destroyed 4 | . . . . . 4 Tunneler 1 | . . . . . 1 Swarmer 3 | . . . . . 3 Grunt 2 | . . . . . 2 Duelist 1 | . . . . . 1 Best Kill Streak 3 | . . . . . 3 Combat Bots Only 3 | . . . . . 3 Max Kills in Single Turn 1 | . . . . . 1 Gunslinging . | . . . . . . Exploded . | . . . . . . Melee 1 | . . . . . 1 Uniques/NPCs Destroyed . | . . . . . . Combat | -11 -10 -10 -10 -9 -8 -------- Run | Jun Mat Min Exi Min Mat Damage Taken 1072 | . . . . . 1072 Core 407 | . . . . . 407 Absorbed by Shields . | . . . . . . Core Remaining (%) 100 | 100 . . . 100 . Volleys Fired 3 | . . . . . 3 Largest 1 | . . . . . 1 Hottest 20 | . . . . . 20 Shots Fired 3 | . . . . . 3 Gun 3 | . . . . . 3 Cannon . | . . . . . . Launcher . | . . . . . . Special . | . . . . . . Kinetic 3 | . . . . . 3 Thermal . | . . . . . . Explosive . | . . . . . . Electromagnetic . | . . . . . . Robot Hit Streak 3 | . . . . . 3 Robot Miss Streak . | . . . . . . Penetration Max . | . . . . . . Secondary Targets . | . . . . . . Shots Hit Robots 14 | . . . . . 14 Core Hits 4 | . . . . . 4 Critical Kills . | . . . . . . Critical Parts Destroyed . | . . . . . . Critical Strikes . | . . . . . . Melee Attacks 15 | . . . . . 15 Impact 15 | . . . . . 15 Slashing . | . . . . . . Piercing . | . . . . . . Sneak Attacks 1 | . . . . . 1 Combat Hostiles . | . . . . . . Follow-up Attacks . | . . . . . . Damage Inflicted 553 | . . . . . 553 Guns 36 | . . . . . 36 Cannons . | . . . . . . Explosions . | . . . . . . Melee 517 | . . . . . 517 Ramming . | . . . . . . Kinetic 36 | . . . . . 36 Thermal . | . . . . . . Explosive . | . . . . . . Electromagnetic . | . . . . . . Impact 517 | . . . . . 517 Slashing . | . . . . . . Piercing . | . . . . . . Highest Corruption . | . . . . . . Average Corruption . | . . . . . . Corruption Purged . | . . . . . . Corruption Blocked . | . . . . . . Overload Shots . | . . . . . . Overflow Damage 89 | . . . . . 89 Projectiles . | . . . . . . Explosions . | . . . . . . Melee 89 | . . . . . 89 Knockbacks 3 | . . . . . 3 Impact 3 | . . . . . 3 Kinetic . | . . . . . . Secondary . | . . . . . . Self-Inflicted Damage . | . . . . . . Shots . | . . . . . . Rammed . | . . . . . . Targets Rammed . | . . . . . . Kicked . | . . . . . . Crushed . | . . . . . . Highest Temperature 7 | . . . . . 7 Average Temperature 7 | . . . . . 7 Received Heat Transfer 396 | . . . . . 396 Siege Activations . | . . . . . . Robots Corrupted . | . . . . . . Combat Hostiles . | . . . . . . Parts Fried 6 | . . . . . 6 Impact Corruptions 4 | . . . . . 4 Robots Melted . | . . . . . . Combat Hostiles . | . . . . . . Parts Melted . | . . . . . . Heat Transferred . | . . . . . . Parts Sabotaged . | . . . . . . Parts Stolen . | . . . . . . Parts Stripped . | . . . . . . Power Chain Reactions . | . . . . . . Missiles Intercepted . | . . . . . . Alert | -11 -10 -10 -10 -9 -8 ------- Run | Jun Mat Min Exi Min Mat Peak Influence 130 | . 45 17 . . 130 Initial 17 | . . 17 . . . Average 41 | . 22 17 . . 65 Maximum Alert Level . | . . . . . . Low Security (%) 100 | 100 100 100 . 100 100 Level 1 . | . . . . . . Level 2 . | . . . . . . Level 3 . | . . . . . . Level 4 . | . . . . . . Level 5 . | . . . . . . High Security . | . . . . . . Max Security . | . . . . . . Squads Dispatched 2 | . 1 . . . 1 Investigation . | . . . . . . Extermination . | . . . . . . Reinforcement 2 | . 1 . . . 1 Assault . | . . . . . . Garrison . | . . . . . . Intercept . | . . . . . . Searches Triggered . | . . . . . . Construction Impeded . | . . . . . . Haulers Reinforced . | . . . . . . Active Scanning Responses . | . . . . . . Cargo Convoy Interrupts . | . . . . . . Stealth | -11 -10 -10 -10 -9 -8 --------- Run | Jun Mat Min Exi Min Mat Distress Signals 2 | . . . . . 2 Communications Jammed . | . . . . . . Distress Signals . | . . . . . . Times Spotted 29 | . 3 . . . 26 Peak Tracking Total 9 | . 1 . . . 9 Tactical Retreats 6 | . . . . . 6 Traps | -11 -10 -10 -10 -9 -8 ------- Run | Jun Mat Min Exi Min Mat Traps Triggered . | . . . . . . Indirectly . | . . . . . . Trap Hack Attempts . | . . . . . . Triggered . | . . . . . . Disarmed . | . . . . . . Reprogrammed . | . . . . . . Reused . | . . . . . . Traps Extracted . | . . . . . . Installed . | . . . . . . Triggered . | . . . . . . Machines | -11 -10 -10 -10 -9 -8 ---------- Run | Jun Mat Min Exi Min Mat Machines Disabled . | . . . . . . Max in Single Turn . | . . . . . . Machines Repaired . | . . . . . . Machines Sabotaged . | . . . . . . Overloaded Fab Kills . | . . . . . . Hacking | -11 -10 -10 -10 -9 -8 --------- Run | Jun Mat Min Exi Min Mat Machines Accessed 4 | . 2 . 1 . 1 Terminals 3 | . 2 . . . 1 Fabricators . | . . . . . . Repair Stations . | . . . . . . Recycling Units . | . . . . . . Scanalyzers . | . . . . . . Garrison Access . | . . . . . . Total Hacks 5 | . 2 . 1 . 2 Successful 1 | . . . 1 . . Failed 4 | . 2 . . . 2 Catastrophic 2 | . 1 . . . 1 Database Lockouts . | . . . . . . Manual 4 | . 1 . 1 . 2 Terminals 4 | . 2 . . . 2 Fabricators . | . . . . . . Repair Stations . | . . . . . . Recycling Units . | . . . . . . Scanalyzers . | . . . . . . Garrison Access . | . . . . . . Terminal Hacks 1 | . . . 1 . . EX-Prototype ID Bank 1 | . . . 1 . . Fabricator Hacks . | . . . . . . Repair Station Hacks . | . . . . . . Recycling Unit Hacks . | . . . . . . Scanalyzer . | . . . . . . Garrison Access Hacks . | . . . . . . Unauthorized Hacks . | . . . . . . Terminals . | . . . . . . Fabricators . | . . . . . . Repair Stations . | . . . . . . Recycling Units . | . . . . . . Scanalyzers . | . . . . . . Garrison Access . | . . . . . . Data Cores Recovered . | . . . . . . Used . | . . . . . . Hacking Detections 3 | . 2 . . . 1 Full Trace Events . | . . . . . . Feedback Events . | . . . . . . Feedback Blocked . | . . . . . . Robot Schematics Acquired . | . . . . . . Robots Built . | . . . . . . Authchips . | . . . . . . Time . | . . . . . . Total Robot Build Rating . | . . . . . . Part Schematics Acquired . | . . . . . . Parts Built . | . . . . . . Authchips . | . . . . . . Time . | . . . . . . Total Part Build Rating . | . . . . . . Parts Repaired . | . . . . . . Time . | . . . . . . Parts Recycled . | . . . . . . Recycled Matter . | . . . . . . Retrieved Matter . | . . . . . . Retrieved Components . | . . . . . . Parts Scanalyzed . | . . . . . . Part Schematics Acquired . | . . . . . . Parts Damaged . | . . . . . . Bothacking | -11 -10 -10 -10 -9 -8 ------------ Run | Jun Mat Min Exi Min Mat Used RIF Installer . | . . . . . . Robots Hacked . | . . . . . . Non-combat . | . . . . . . Combat . | . . . . . . Robot Hacks Applied . | . . . . . . Relay Couplers Released . | . . . . . . Fabnet Peak Effective % . | . . . . . . Robots Rewired . | . . . . . . Allies Hacked . | . . . . . . Hacks Repelled . | . . . . . . Allies | -11 -10 -10 -10 -9 -8 -------- Run | Jun Mat Min Exi Min Mat Total Allies . | . . . . . . Largest Group . | . . . . . . Highest-Rated Group . | . . . . . . Highest-Rated Ally . | . . . . . . Total Orders . | . . . . . . Ally Attacks . | . . . . . . Total Damage . | . . . . . . Kills . | . . . . . . Allies Corrupted . | . . . . . . Allies Melted . | . . . . . . Intel | -11 -10 -10 -10 -9 -8 ------- Run | Jun Mat Min Exi Min Mat Robot Analysis Total . | . . . . . . Derelict Logs Recovered . | . . . . . . Drone Launches . | . . . . . . Drone Recoveries . | . . . . . . Exploration | -11 -10 -10 -10 -9 -8 ------------- Run | Jun Mat Min Exi Min Mat Turns Passed 962 | 72 141 116 204 31 398 Spaces Moved 923 | 78 169 125 248 38 265 Core 5 | 4 . . . . 1 Treads . | . . . . . . Legs 140 | . . . . . 140 Wheels 778 | 74 169 125 248 38 124 Hover . | . . . . . . Flight . | . . . . . . Fastest Speed 50 | 50 80 80 80 80 80 Average Speed 86 | 78 80 80 80 80 103 Slowest Speed 190 | 80 80 80 80 80 190 Overloaded Moves . | . . . . . . Propulsion Burnouts . | . . . . . . Robots Hopped . | . . . . . . Cave-ins Triggered . | . . . . . . Exploration Rate (%) 25 | 4 37 18 61 14 21 Regions Visited 5 Branch Regions 3 Pre-discovered Areas . | . . . . . . Known Exits Taken . | . . . . . . Unknown Exits Taken 5 | 1 1 1 1 1 . Scrap Searched 2 | . . 1 . 1 . Spaces Dug . | . . . . . . Terrain Destroyed . | . . . . . . Melee . | . . . . . . Projectile . | . . . . . . AOE . | . . . . . . Terrain Rammed . | . . . . . . Walls Destroyed . | . . . . . . Machines Disabled . | . . . . . . Actions | -11 -10 -10 -10 -9 -8 --------- Run | Jun Mat Min Exi Min Mat Total 1051 | 86 174 140 253 38 360 Wait 83 | 1 1 15 . 1 65 Move 918 | 77 168 124 247 37 265 Hop . | . . . . . . Pick Up 7 | 4 . 1 2 . . Fast Attach 11 | 4 2 . . . 5 Attach 6 | . 1 . 2 . 3 Detach 5 | . 1 . 1 . 3 Swap 1 | . . . 1 . . Drop 2 | . 1 . . . 1 Fire 3 | . . . . . 3 Melee 15 | . . . . . 15 Ram . | . . . . . . Kick . | . . . . . . Crush . | . . . . . . Escape Stasis . | . . . . . . Rewire . | . . . . . . Trap . | . . . . . . Miscellaneous . | . . . . . . Route ------- -11/Junkyard -10/Materials (discovered 2 exits: [*Mat] / [*Min]) -10/Mines -10/Exiles -9/Mines -8/Materials History --------- Turn | Location | Event 25 | -11/Junkyard | Discovered new exit (range 16) 73 | -11/Junkyard | Entered Materials 170 | -10/Materials | Discovered new exit (range 8) 208 | -10/Materials | Discovered new exit (range 9) 214 | -10/Materials | Entered Mines 256 | -10/Mines | Discovered new exit (range 5) 311 | -10/Mines | Build established: Mutant 326 | -10/Mines | Deemed a non-threat by the Exiles lab entrance 330 | -10/Mines | Entered Exiles 349 | -10/Exiles | Met 8R-AWN 363 | -10/Exiles | Met EX-HEX 386 | -10/Exiles | Met EX-BIN 398 | -10/Exiles | Aligned with FarCom system 399 | -10/Exiles | Given EX-Vault access code 427 | -10/Exiles | Opened EX-Vault 431 | -10/Exiles | Found Prototype Processor 432 | -10/Exiles | Identified 0b10 Alert Chip 434 | -10/Exiles | Found Prototype Device 435 | -10/Exiles | Identified Chronowheel 435 | -10/Exiles | Activated Chronowheel 462 | -10/Exiles | Warned to stay clear of 0b10 Research branches 485 | -10/Exiles | Met EX-DEC 527 | -10/Exiles | Discovered new exit (range 10) 534 | -10/Exiles | Left Exiles lab with 0b10 Alert Chip 534 | -10/Exiles | Entered Mines 554 | -9/Mines | Discovered new exit (range 13) 565 | -9/Mines | Entered Materials 565 | -8/Materials | Evolved 4 slots: Power x1, Propulsion x1, Utility x2 962 | -8/Materials | Core integrity fell below 50% 963 | -8/Materials | Self-destructed Last Messages --------------- 00876_ T-07 Excavator knocked back. 00877_ T-07 Excavator system terminally corrupted. 00877_ Wheel fried. 00886_ K-01 Serf collects debris. 00920_ Assault Rifle destroyed. 00920_ Lgt. Ion Engine destroyed. 00924_ Lgt. Deuterium Engine destroyed. 00925_ S-10 Pest knocked back. 00928_ S-10 Pest destroyed. 00929_ Reaction Control System destroyed. 00930_ Acquired 5 matter. 00930_ S-10 Pest destroyed. 00931_ A-02 Transporter destroyed. 00940_ Critical hit (Burn: +37). 00949_ EM Pulse Gun destroyed. 00951_ Imp. Aluminum Leg destroyed. 00954_ Aluminum Leg destroyed. 00959_ Hvy. Mace destroyed. 00961_ ECM Suite destroyed. 00963_ Critical hit (Burn: +37). Map ----- +----------------------------------------------------+ | ?????????######## #?# # # #?????? | | ????????????????# #?# # # #?????? | | ??????????####??# #?# """ """ + #### #?????? | | ?????????? ?# #?# """ """ # #??# #?????? | | ??????????"""""?# #?# """ """ # #### #?????? | | ??????????""""" # ############# = #?????? | | ??????????""""" # # ????? | | ??????????""""" + /?????? | | ??????????""""" # #?????? | | ??????????""""" ####+########## #?????? | | ??????????"""""??#%[= *# !!!??# ! #?????? | | ?????????? ??# ""! # !!! # !! """ #?????? | | ??????????####???# """[# !!! + !! """ #?????? | | ?????????????????# """*# # """ #?????? | | ?????????????????# """%#??????# #?????? | | ?????????????????# """[#??????# #?????? | | ?????????????????# *######?#[ #"T"# #?????? | | ?????????????????####### #?#% ######/###?????? | | ???????????????????????#" [ #?#= #????? ??????? | | ???????????????????????#T #?# * #??????"""?????? | | ???????????????????????#" [!#?#%==#??????""" ????? | | ???????????????????????# [ #?#]%]#??????????#???? | | ?????????????????#####?? ###!]]##?????????????? | | ?????????????????# ###u### ! #?????????????? | | ?????????????????# gsY #?????????????? | | ?????????????????# [ @l g #?????????????? | | ?????????????????# u ggg #?????????????? | | ?????????????????# ###/### #?????????????? | | ?????????????????## #?# ?#######?????????????? | | ??????????????????# ??# ????????????????????? | | ??????????????????# ???# #???????????????????? | | ??????????????????+ ????#?? #???????????????????? | | ??????????????????#???????? #???????????????????? | | ??????????????????????????? #???????????????????? | | ??????????????????????????? #???????????????????? | | ???????????????????????????? #???????????????????? | | ???????????????????????????? #???????????????????? | | ????????????????????????????##???????????????????? | | ?????????????????????????????????????????????????? | | ?????????????????????????????????????????????????? | | ?????????????????????????????????????????????????? | | ?????????????????????????????????????????????????? | | ?????????????????????????????????????????????????? | | ?????????????????????????????????????????????????? | | ?????????????????????????????????????????????????? | | ?????????????????????????????????????????????????? | | ?????????????????????????????????????????????????? | | ?????????????????????????????????????????????????? | | ?????????????????????????????????????????????????? | | ?????????????????????????????????????????????????? | +----------------------------------------------------+ Best States ------------- Heat Dissipation 31 Energy Generation 19 Energy Capacity 275 Matter Stores 300 Matter Capacity 300 Sight Range 16 Terrain Scan Density 10 ECM Strength 1 Evasion (%) 59 Item Schematics ----------------- None Robot Schematics ------------------ None Fabricated ------------ Nothing Alien Tech Used ----------------- None Achievements -------------- None Challenges ------------ None Game ------ Seed MicrowarpHeavyAutohacker Manual? 0 Play Time 00:16:01 Cumulative 22.2 hours Start 2023.04.27 @ 00:02:46 End 2023.04.27 @ 13:09:13 Sessions 2 Manual Loads 0 Difficulty Rogue Special Mode None Game No. 83 Rogue 47 Adventurer 36 Explorer 0 Win Type - Total 0 Types 0/0/0/0/0/0/0/0/0 Lore% 18 Gallery% 22 Achievement% 16 Wizard Run 0 Options --------- ASCII 0 Keyboard 1 Movement Numpad Keybinds 0 Fullscreen 2 Font 18/X11Bold Map View 76x50 Tactical HUD 1 Map Filters NONE Filters NONE Steam 1 RUN: f7991c29-dc41-4b4e-bc5b-fca5fe59a75e